bitfinex/quotes_ETHUSD_20230701
["timestamp","ask_amount","ask_price","bid_price","bid_amount"]
[1688221200935,13.07790184,1924.9,1924.4,5.19629]
[1688221201233,12.98957,1924.7,1924.2,2.0616]
[1688221201418,2.68752184,1924.6,1924.2,7.25849]
[1688221201622,10.3924,1924.5,1924.1,5.61715385]
[1688221201828,2.68752184,1924.4,1924.1,5.61715385]
[1688221202010,7.88408184,1924.4,1924.1,6.99936424]
[1688221202340,13.08064184,1924.4,1924.1,1.38221039]
[1688221202646,7.88408184,1924.4,1924.1,5.19718]
[1688221203439,13.08064184,1924.4,1924.0,2.0616]
[1688221203616,13.08064184,1924.4,1924.0,7.25909]
[1688221203804,17.42175184,1924.4,1924.0,2.0616]
[1688221204001,17.42175184,1924.4,1924.0,8.7610066]
[1688221204435,8.19593,1924.6,1924.1,0.01405457]
[1688221204660,5.68752184,1924.6,1924.1,0.01405457]
[1688221204812,5.68752184,1924.6,1924.2,12.99206]
[1688221205014,2.68752184,1924.6,1924.2,12.99206]
[1688221205310,2.68752184,1924.6,1924.4,10.39284]
[1688221206138,2.68752184,1924.6,1924.4,12.99105]
[1688221206314,5.1101,1924.8,1924.4,13.93705]
[1688221206315,3.0,1924.8,1924.4,13.93705]
[1688221206514,1.040017,1925.1,1924.4,13.93705]
[1688221206736,2.68752184,1925.0,1924.5,2.339705]
[1688221206946,3.0,1924.9,1924.6,10.3914]
[1688221207623,3.0,1924.9,1924.6,5.19566]
[1688221208422,3.0,1924.9,1924.5,7.535695]
[1688221208652,8.1951,1924.9,1924.5,7.535695]
[1688221208833,8.1951,1924.9,1924.6,0.7535695]
[1688221209160,3.0,1924.9,1924.6,11.1452895]
[1688221209343,1.04259813,1925.1,1924.6,11.1452895]
[1688221209344,1.04259813,1925.1,1924.6,14.69528042]
[1688221209652,10.38833,1925.3,1924.8,12.98825]
[1688221209853,2.68752184,1925.2,1924.8,12.98825]
[1688221210147,2.68752184,1925.2,1924.9,10.40385873]
[1688221210914,3.72744384,1925.2,1924.9,10.40385873]
[1688221211614,2.68752184,1925.2,1924.9,10.40385873]
[1688221211838,7.24868026,1925.4,1924.9,10.40385873]
[1688221212039,2.68752184,1925.3,1924.9,13.00138873]
[1688221212271,3.0,1925.2,1925.1,5.19453]
[1688221212474,3.0,1925.3,1925.1,5.19453]
[1688221212982,3.72734584,1925.4,1925.1,5.19453]
[1688221213173,3.72734584,1925.4,1925.1,11.39286489]
[1688221213375,2.68752184,1925.4,1925.1,11.39286489]
[1688221213547,2.68752184,1925.4,1925.1,6.19833489]
[1688221213959,2.68752184,1925.4,1925.1,11.39286489]
[1688221214764,2.68752184,1925.4,1925.1,13.99012489]
[1688221218252,2.68752184,1925.4,1925.2,1.39901249]
[1688221218454,2.68752184,1925.4,1925.3,10.38798]
[1688221220598,2.68752184,1925.4,1925.3,12.98497]
[1688221226192,1.039787,1925.5,1925.3,12.98497]
[1688221226500,4.039787,1925.5,1925.3,12.98497]
[1688221226659,1.039787,1925.5,1925.3,12.98497]
[1688221226887,5.01501194,1925.7,1925.3,14.543176]
[1688221227111,2.68752184,1925.6,1925.3,12.98497]
[1688221227312,3.0,1925.5,1925.3,12.98497]
[1688221230555,5.68752184,1925.5,1925.3,5.19399]
[1688221230833,2.68752184,1925.4,1925.2,5.19415]
[1688221230997,3.0,1925.3,1925.0,5.1946]
[1688221231202,3.16752184,1925.2,1925.0,5.1946]
[1688221231421,3.16752184,1925.2,1924.9,10.38985]
[1688221231422,8.36190184,1925.2,1924.9,10.38985]
[1688221232099,10.11149402,1925.2,1924.9,10.38985]
[1688221233890,2.68752184,1925.2,1924.9,12.98738]
[1688221241246,7.88183184,1925.2,1924.9,10.38985]
[1688221241650,13.07614184,1925.2,1924.9,5.19488]
[1688221241949,5.19431,1925.2,1924.7,2.12755019]
[1688221242251,5.19431,1925.2,1924.9,10.39014]
[1688221242410,5.19431,1925.2,1925.0,1.039014]
[1688221242614,10.38862,1925.2,1925.0,1.039014]
[1688221242851,5.19431,1925.2,1925.0,5.19479]
[1688221243955,5.19431,1925.2,1924.9,10.39003]
[1688221245832,15.09476,1925.3,1924.9,10.39003]
[1688221246021,15.09476,1925.3,1924.9,5.19496]
[1688221248061,15.09476,1925.3,1924.9,10.39003]
[1688221248249,15.09476,1925.3,1924.9,11.582063]
[1688221254971,4.7065,1925.3,1924.9,6.386993]
[1688221255338,15.09468,1925.3,1924.9,6.386993]
[1688221256756,15.09468,1925.3,1924.9,11.582063]
[1688221257760,9.90059,1925.3,1924.9,11.582063]
[1688221258270,4.7065,1925.3,1924.9,14.179593]
[1688221258435,10.39036113,1925.4,1925.1,5.19453]
[1688221258436,0.00258113,1925.4,1925.1,5.19453]
[1688221258638,6.232719,1925.7,1925.1,12.98632]
[1688221258837,7.37912184,1925.6,1925.1,12.98632]
[1688221259580,7.37912184,1925.6,1925.1,14.64182]
[1688221259737,7.37912184,1925.6,1925.3,5.19395]
[1688221260398,3.0,1925.6,1925.3,10.38794]
[1688221260534,9.79392,1925.7,1925.3,10.38794]
[1688221260970,14.98692,1925.7,1925.3,10.38794]
[1688221261286,14.98692,1925.7,1925.0,4.3055593]
[1688221261287,2.68752184,1925.6,1925.0,1.9416]
[1688221261455,5.1935,1925.5,1925.1,10.38882]
[1688221261648,2.68752184,1925.5,1925.1,10.38882]
[1688221262135,4.28842184,1925.5,1925.1,10.38882]
[1688221262339,4.28842184,1925.5,1925.1,12.042918]
[1688221263269,4.28842184,1925.5,1925.1,14.640178]
[1688221265797,4.28842184,1925.5,1925.1,12.042918]
[1688221266113,2.68752184,1925.4,1925.1,10.38882]
[1688221266774,2.68752184,1925.4,1925.1,5.19439]
[1688221266961,2.68752184,1925.4,1925.0,10.3894]
[1688221267597,2.68752184,1925.4,1925.0,12.9868]
[1688221275798,7.88125184,1925.4,1925.0,10.38959]
[1688221275972,5.19431,1925.2,1924.9,5.19489]
[1688221276171,2.68752184,1925.1,1924.9,10.38996]
[1688221276696,2.68752184,1925.1,1924.6,2.1154]
[1688221276861,8.82806184,1925.1,1924.7,5.19543]
[1688221277062,10.23029902,1925.1,1924.8,5.19528]
[1688221277269,9.28429902,1925.1,1924.8,5.19528]
[1688221277473,14.47883902,1925.1,1924.8,5.19528]
[1688221278069,14.47883902,1925.1,1924.4,32.62812]
[1688221278070,6.14119,1924.9,1924.4,5.19642]
[1688221278266,6.14119,1924.9,1924.4,12.99105]
[1688221278267,8.82894184,1924.8,1924.4,12.99105]
[1688221278480,2.68752184,1924.8,1924.4,12.99105]
[1688221278672,2.68752184,1924.8,1924.4,14.903039]
[1688221279200,3.72768384,1924.8,1924.4,14.903039]
[1688221281463,1.040162,1924.8,1924.4,14.903039]
[1688221281705,3.946,1925.2,1924.5,0.01405165]
[1688221281706,3.0,1925.2,1924.5,0.01405165]
[1688221281881,1.441,1925.3,1924.7,12.98895]
[1688221281882,2.68752184,1925.1,1924.7,12.98895]
[1688221282083,3.0,1925.0,1924.8,1.04280606]
[1688221282398,1.04001,1925.2,1924.9,5.19507]
[1688221282601,1.04001,1925.2,1924.9,12.98767]
[1688221282602,3.72753184,1925.2,1924.9,12.98767]
[1688221282821,3.0,1925.3,1925.0,1.298767]
[1688221282965,3.41927253,1925.5,1925.1,10.38906]
[1688221283170,3.72737084,1925.4,1925.1,10.38906]
[1688221283391,3.0,1925.3,1925.1,10.38906]
[1688221284164,3.72737084,1925.4,1925.1,12.98632]
[1688221284678,3.72737084,1925.4,1925.1,14.68860897]
[1688221284679,1.039849,1925.4,1925.1,14.68860897]
[1688221284925,0.00258113,1925.7,1925.1,14.68860897]
[1688221285074,2.68752184,1925.6,1925.1,14.68860897]
[1688221286113,3.0,1925.5,1925.1,14.68860897]
[1688221286298,5.68752184,1925.5,1925.1,14.68860897]
[1688221287577,2.68752184,1925.5,1925.2,1.4688609]
[1688221287772,2.68752184,1925.5,1925.3,5.19399]
[1688221288290,7.88098184,1925.5,1925.1,0.01404727]
[1688221288490,2.68752184,1925.4,1925.1,0.01404727]
[1688221288696,13.07523184,1925.4,1925.1,0.01404727]
[1688221288878,10.3886,1925.2,1924.8,10.39045]
[1688221289190,2.68752184,1925.1,1924.8,10.39045]
[1688221291418,4.30752318,1925.3,1924.8,12.98812]
[1688221291580,2.68752184,1925.2,1924.8,12.98812]
[1688221292311,2.68752184,1925.2,1924.8,13.00216946]
[1688221292711,3.0,1925.4,1924.8,13.00216946]
[1688221292913,2.68752184,1925.3,1924.8,13.00216946]
[1688221293221,2.68752184,1925.3,1924.8,14.65626241]
[1688221297422,2.68752184,1925.3,1924.8,13.00216946]
[1688221298514,7.88154184,1925.3,1924.8,13.00216946]
[1688221299696,0.48,1925.2,1924.8,10.40449946]
[1688221299894,2.68752184,1925.1,1924.8,0.01404946]
[1688221300210,0.74875218,1925.0,1924.8,5.19532]
[1688221300520,2.68752184,1924.9,1924.8,5.19532]
[1688221300823,2.68752184,1924.9,1924.8,10.39066]
[1688221303540,2.68752184,1924.9,1924.8,12.98833]
[1688221308661,2.64678113,1925.2,1924.8,12.98833]
[1688221308826,2.68752184,1925.1,1924.8,12.98833]
[1688221312454,2.68752184,1925.1,1924.8,13.00237946]
[1688221321378,3.12609402,1925.1,1924.8,13.00237946]
[1688221329273,3.12609402,1925.1,1924.7,2.59776]
[1688221329274,8.32064402,1925.1,1924.7,10.39093]
[1688221332360,14.46119402,1925.1,1924.5,5.19589]
[1688221332563,14.46119402,1925.1,1924.4,2.1239]
[1688221332564,7.5996194,1925.0,1924.4,2.1239]
[1688221332766,2.68752184,1924.9,1924.5,10.39218]
[1688221332960,2.68752184,1924.9,1924.5,5.19603]
[1688221333377,2.68752184,1924.9,1924.5,12.99025]
[1688221341672,3.00258113,1925.0,1924.5,13.25798971]
[1688221341885,2.68752184,1925.0,1924.6,1.32579897]
[1688221342088,2.68752184,1925.0,1924.7,12.9889]
[1688221342588,3.0,1925.2,1924.7,19.39824971]
[1688221342806,2.68752184,1925.2,1924.8,1.93982497]
[1688221342982,6.7075,1925.4,1924.9,15.58507]
[1688221343179,2.68752184,1925.3,1924.9,15.58507]
[1688221343505,3.0,1925.2,1924.9,15.58507]
[1688221343714,3.0,1925.2,1924.9,17.5499095]
[1688221343901,2.68752184,1925.3,1924.9,17.5499095]
[1688221345302,3.4059161,1925.4,1924.9,17.5499095]
[1688221345502,3.0,1925.3,1924.9,17.56395823]
[1688221346780,0.4059161,1925.4,1924.9,17.56395823]
[1688221347107,3.13114693,1925.5,1925.0,1.75639582]
[1688221347411,5.81866877,1925.5,1925.1,10.3888]
[1688221347821,5.81866877,1925.5,1925.1,12.98606]
[1688221348711,1.039762,1925.6,1925.3,0.946]
[1688221348887,1.039762,1925.6,1925.4,12.9843]
[1688221349090,2.16813129,1925.9,1925.5,0.01404435]
[1688221349408,2.68752184,1925.8,1925.6,10.38626]
[1688221349779,6.93881,1926.1,1925.6,10.38626]
[1688221349979,5.68752184,1926.0,1925.6,10.38626]
[1688221350780,5.68752184,1926.0,1925.6,12.98285]
[1688221351007,6.43096402,1926.0,1925.6,12.98285]
[1688221352813,6.72708884,1926.0,1925.6,12.98285]
[1688221354091,11.91922884,1926.0,1925.6,12.98285]
[1688221354536,6.72708884,1926.0,1925.6,12.98285]
[1688221357537,3.72708884,1926.0,1925.6,12.98285]
[1688221357748,2.23670694,1926.2,1925.6,13.92885]
[1688221357749,0.41560694,1926.2,1925.6,13.92885]
[1688221357954,0.41560694,1926.2,1925.7,2.333885]
[1688221357955,2.68752184,1926.1,1925.7,2.333885]
[1688221358155,2.68752184,1926.1,1925.8,12.98147]
[1688221363851,3.0,1926.4,1925.9,0.01404144]
[1688221364051,2.68752184,1926.4,1926.0,12.97992]
[1688221364208,3.0,1926.3,1926.0,12.97992]
[1688221365313,1.039301,1926.4,1926.0,12.97992]
[1688221365314,3.0,1926.4,1926.0,12.97992]
[1688221365540,5.18337797,1926.5,1926.0,12.97992]
[1688221365791,7.87089981,1926.5,1926.0,12.97992]
[1688221365916,7.87089981,1926.5,1926.1,1.297992]
[1688221366115,7.87089981,1926.5,1926.2,5.19151]
[1688221366917,6.22759981,1926.5,1926.2,5.19151]
[1688221368613,7.26685681,1926.5,1926.2,10.38307]
[1688221369120,4.4503122,1926.5,1926.2,10.38307]
[1688221369323,0.4110552,1926.5,1926.3,11.420577]
[1688221369854,1.039186,1926.6,1926.3,14.016217]
[1688221370153,3.72670784,1926.6,1926.3,14.016217]
[1688221370359,3.72670784,1926.6,1926.3,12.97791]
[1688221374726,5.28255954,1926.7,1926.3,12.97791]
[1688221374958,3.0,1926.6,1926.3,12.97791]
[1688221375362,0.54745954,1926.7,1926.3,12.97791]
[1688221375863,0.13250005,1926.7,1926.3,12.97791]
[1688221376039,0.13250005,1926.7,1926.5,10.38152]
[1688221378243,6.10334347,1926.8,1926.5,10.38152]
[1688221378469,8.79086531,1926.8,1926.5,10.38152]
[1688221378767,7.14286531,1926.8,1926.5,10.38152]
[1688221380340,12.33285531,1926.8,1926.5,10.38152]
[1688221380949,7.14286531,1926.8,1926.5,10.38152]
[1688221381473,7.27096492,1926.8,1926.5,10.38152]
[1688221382137,7.27096492,1926.8,1926.5,14.4043731]
[1688221382138,0.41625947,1926.8,1926.5,14.4043731]
[1688221382338,5.68849,1927.4,1926.7,0.943]
[1688221382339,1.7125,1927.2,1926.7,0.943]
[1688221382539,1.7125,1927.2,1926.9,10.3793]
[1688221382540,4.40002184,1927.2,1926.9,10.3793]
[1688221382849,4.40002184,1927.2,1926.9,12.97414]
[1688221384137,5.02402402,1927.2,1926.9,10.3793]
[1688221384368,10.21301402,1927.2,1926.9,5.18965]
[1688221384771,10.21301402,1927.2,1926.9,10.37933]
[1688221384975,9.58901184,1927.2,1926.9,10.37933]
[1688221385775,4.40002184,1927.2,1926.9,10.37933]
[1688221386075,4.40002184,1927.2,1926.9,12.97417]
[1688221386276,2.68752184,1927.2,1926.9,12.97417]
[1688221388581,2.68752184,1927.1,1926.9,5.18965]
[1688221388808,2.68752184,1927.1,1926.9,10.37933]
[1688221389084,2.68752184,1927.1,1926.9,5.18965]
[1688221389291,2.68752184,1927.1,1926.9,10.37933]
[1688221390079,2.68752184,1927.1,1926.9,12.97417]
[1688221390283,1.038856,1927.2,1926.9,14.271587]
[1688221390487,6.72637784,1927.2,1926.9,14.271587]
[1688221390663,5.68752184,1927.2,1926.9,14.271587]
[1688221392449,3.0,1927.2,1926.9,14.271587]
[1688221392653,2.677243,1927.3,1926.9,14.271587]
[1688221392984,5.68752184,1927.2,1926.9,5.18965]
[1688221393190,10.87643184,1927.2,1926.9,10.37933]
[1688221393554,10.87643184,1927.2,1926.9,5.18965]
[1688221393888,10.87643184,1927.2,1926.9,10.37933]
[1688221394273,10.87643184,1927.2,1926.9,12.97417]
[1688221397099,10.87643184,1927.2,1926.9,10.37933]
[1688221397962,12.84485932,1927.2,1926.9,10.37933]
[1688221403198,5.68752184,1927.2,1926.9,10.37933]
[1688221403400,5.68752184,1927.2,1926.9,12.97417]
[1688221404087,10.87644184,1927.2,1926.9,12.97417]
[1688221405600,7.87644184,1927.2,1926.9,12.97417]
[1688221406179,2.68752184,1927.2,1926.9,12.97417]
[1688221407208,4.35593532,1927.2,1926.9,10.37933]
[1688221407406,17.32815532,1927.2,1926.6,5.19036]
[1688221407614,6.16752184,1927.1,1926.3,2.59563]
[1688221407903,10.37955,1926.9,1926.4,10.38176]
[1688221408105,13.54771184,1926.8,1926.4,5.19086]
[1688221408606,13.54771184,1926.8,1926.4,10.38188]
[1688221408972,8.35751184,1926.8,1926.4,10.38188]
[1688221409807,10.23055014,1926.8,1926.4,10.38188]
[1688221410108,15.42054014,1926.8,1926.4,10.38188]
[1688221410271,15.42054014,1926.8,1926.4,5.19086]
[1688221410474,15.42054014,1926.8,1926.3,5.1912]
[1688221410811,6.1365,1926.6,1926.3,10.38258]
[1688221410996,2.68752184,1926.5,1926.3,5.19129]
[1688221412206,2.68752184,1926.5,1926.3,10.38258]
[1688221412374,2.68752184,1926.5,1926.3,5.19129]
[1688221412569,2.68752184,1926.5,1926.3,10.38258]
[1688221413376,2.68752184,1926.5,1926.3,5.19129]
[1688221413577,2.68752184,1926.5,1926.3,10.38258]
[1688221413914,2.68752184,1926.5,1926.3,12.97822]
[1688221415817,0.00258113,1926.7,1926.3,14.53702393]
[1688221415990,2.68752184,1926.6,1926.3,14.53702393]
[1688221420888,2.68752184,1926.6,1926.2,0.95503925]
[1688221421103,13.06860184,1926.6,1926.2,5.19155]
[1688221421429,13.06860184,1926.6,1926.2,10.38311]
[1688221421430,5.67082,1926.5,1926.2,10.38311]
[1688221421608,2.68752184,1926.4,1926.2,5.19155]
[1688221421787,2.68752184,1926.4,1926.1,10.38348]
[1688221421989,2.68752184,1926.4,1926.1,12.97939]
[1688221422603,2.68752184,1926.4,1926.1,10.38348]
[1688221423536,2.68752184,1926.4,1926.1,12.97939]
[1688221426612,2.68752184,1926.4,1926.1,14.477989]
[1688221428440,2.68752184,1926.4,1926.1,14.49202898]
[1688221430332,2.68752184,1926.4,1926.1,15.43802898]
[1688221432849,3.49408113,1926.7,1926.1,15.43802898]
[1688221433044,2.68752184,1926.6,1926.2,0.941]
[1688221433235,2.68752184,1926.6,1926.3,12.9781]
[1688221435854,2.68752184,1926.6,1926.3,13.9241]
[1688221438530,5.2607399,1926.9,1926.4,0.946]
[1688221438729,3.0,1926.8,1926.5,12.97656]
[1688221439462,0.4120399,1926.9,1926.5,12.97656]
[1688221439664,8.6017199,1926.9,1926.5,12.97656]
[1688221439873,8.18968,1926.9,1926.5,12.97656]
[1688221440161,8.18968,1926.9,1926.5,14.508057]
[1688221440737,2.68752184,1926.8,1926.4,11.7742]
[1688221440924,7.87757184,1926.8,1926.4,10.38179]
[1688221444171,7.87757184,1926.8,1926.4,10.38191]
[1688221444474,13.06762184,1926.8,1926.4,10.38191]
[1688221444771,7.87753184,1926.8,1926.4,12.97742]
[1688221446838,2.68752184,1926.8,1926.4,12.97742]
[1688221447966,7.87747184,1926.8,1926.4,12.97742]
[1688221448781,7.87747184,1926.8,1926.4,10.38191]
[1688221448981,9.64985614,1926.8,1926.4,10.38191]
[1688221449144,9.64985614,1926.8,1926.4,5.19089]
[1688221449469,9.64985614,1926.8,1926.4,10.38191]
[1688221449645,10.86061,1926.7,1926.3,5.20515852]
[1688221449851,10.86061,1926.7,1926.3,10.39644852]
[1688221449852,2.68752184,1926.6,1926.3,10.39644852]
[1688221452040,2.68752184,1926.6,1926.3,12.99208852]
[1688221454546,7.87808184,1926.6,1926.3,5.19112]
[1688221454876,7.87808184,1926.6,1926.3,10.38241]
[1688221456888,7.87808184,1926.6,1926.3,5.19112]
[1688221457092,9.49251202,1926.6,1926.3,5.19112]
[1688221457393,9.49251202,1926.6,1926.3,10.38241]
[1688221458494,7.87808184,1926.6,1926.3,10.38241]
[1688221462190,7.87808184,1926.6,1926.3,5.19112]
[1688221463616,7.87808184,1926.6,1926.3,10.38241]
[1688221464422,2.68752184,1926.6,1926.3,10.38241]
[1688221465316,7.87802184,1926.6,1926.3,10.38241]
[1688221466086,7.87802184,1926.6,1926.3,5.19112]
[1688221466786,7.87802184,1926.6,1926.3,10.38241]
[1688221467600,7.87802184,1926.6,1926.3,5.19112]
[1688221468216,7.87802184,1926.6,1926.3,10.38241]
[1688221468720,7.87802184,1926.6,1926.3,5.19112]
[1688221469026,7.87802184,1926.6,1926.3,10.38241]
[1688221469227,7.87802184,1926.6,1926.3,5.19112]
[1688221469824,7.87802184,1926.6,1926.3,10.38241]
[1688221470211,7.87802184,1926.6,1926.3,5.19112]
[1688221470412,7.87802184,1926.6,1926.3,10.38241]
[1688221472119,2.68752184,1926.6,1926.3,10.38241]
[1688221475053,2.68752184,1926.6,1926.3,12.97805]
[1688221476740,1.94298113,1926.8,1926.3,14.53543]
[1688221477050,3.42512666,1926.9,1926.4,0.938]
[1688221477355,3.1126485,1926.9,1926.5,12.97655]
[1688221478739,8.3023385,1926.9,1926.5,12.97655]
[1688221478941,7.87721184,1926.9,1926.5,14.987189]
[1688221479254,3.16752184,1926.8,1926.5,10.38138]
[1688221480138,2.68752184,1926.8,1926.5,10.38138]
[1688221480338,9.85271,1927.0,1926.5,12.99079706]
[1688221480339,3.0,1927.0,1926.5,12.99079706]
[1688221480557,2.68752184,1926.9,1926.5,14.74411677]
[1688221483663,7.87730184,1926.9,1926.5,14.74411677]
[1688221485888,2.68752184,1926.9,1926.5,14.74411677]
[1688221486213,7.87724184,1926.9,1926.5,14.74411677]
[1688221487762,2.68752184,1926.9,1926.5,14.74411677]
[1688221487967,3.421625,1927.0,1926.6,1.47441168]
[1688221488193,2.68752184,1927.0,1926.7,10.38033]
[1688221488401,3.0,1926.9,1926.7,10.38033]
[1688221489020,2.68752184,1927.0,1926.7,12.97544]
[1688221496877,2.68752184,1927.0,1926.7,10.38033]
[1688221500822,2.68752184,1927.0,1926.7,5.19016]
[1688221503024,7.87695184,1927.0,1926.5,12.96748706]
[1688221503186,11.25926041,1927.0,1926.5,6.83085706]
[1688221503391,2.68752184,1926.9,1926.5,12.02161706]
[1688221504322,2.68752184,1926.9,1926.5,14.61699706]
[1688221504527,2.68752184,1926.9,1926.5,12.99079706]
[1688221505028,2.68752184,1926.9,1926.5,13.92059534]
[1688221512319,2.68752184,1926.9,1926.5,12.99079706]
[1688221527956,7.87726184,1926.9,1926.5,12.97676]
[1688221528657,7.87984297,1926.9,1926.5,12.97676]
[1688221529654,13.06958297,1926.9,1926.5,12.97676]
[1688221529830,0.48,1926.8,1926.5,12.97676]
[1688221530153,2.68752184,1926.7,1926.5,12.97676]
[1688221531558,2.68752184,1926.7,1926.4,5.19084]
[1688221531559,7.87780184,1926.7,1926.4,5.19084]
[1688221531730,0.48,1926.6,1926.4,5.19084]
[1688221531924,0.48,1926.6,1926.4,10.38186]
[1688221531925,3.16752184,1926.6,1926.4,10.38186]
[1688221532148,4.09740202,1926.6,1926.4,10.38186]
[1688221533232,2.68752184,1926.5,1926.4,5.19084]
[1688221533430,2.68752184,1926.5,1926.4,10.38186]
[1688221533939,2.68752184,1926.5,1925.9,2.59618]
[1688221533940,14.01504184,1926.5,1925.9,2.59618]
[1688221534125,14.01504184,1926.5,1925.9,6.79265]
[1688221534126,0.48,1926.4,1925.9,6.79265]
[1688221534324,7.87893184,1926.3,1926.1,10.38355]
[1688221534528,7.87893184,1926.3,1926.1,5.19172]
[1688221534960,2.68752184,1926.3,1926.1,10.38355]
[1688221535257,7.87882184,1926.3,1926.1,10.38355]
[1688221536142,2.68752184,1926.3,1926.1,10.38355]
[1688221536573,7.87882184,1926.3,1926.1,10.38355]
[1688221536731,2.68752184,1926.3,1926.1,12.97946]
[1688221545188,15.37537256,1926.3,1925.9,5.19234]
[1688221545411,5.19184,1926.1,1925.8,5.19246]
[1688221545589,2.68752184,1926.0,1925.7,5.19277]
[1688221545761,2.68752184,1926.0,1925.7,10.38546]
[1688221546265,2.68752184,1926.0,1925.7,10.38579]
[1688221546771,2.68752184,1926.0,1925.7,12.98224]
[1688221547583,2.68752184,1926.0,1925.7,10.38579]
[1688221547971,2.68752184,1926.0,1925.7,5.19288]
[1688221548367,2.68752184,1926.0,1925.7,10.38579]
[1688221549005,2.68752184,1926.0,1925.7,5.19288]
[1688221549589,7.87970184,1926.0,1925.7,10.38579]
[1688221552364,14.37904602,1926.0,1925.6,1.5581]
[1688221552567,14.37904602,1926.0,1925.5,7.16774]
[1688221552568,16.97509602,1926.0,1925.5,7.16774]
[1688221552892,16.97509602,1926.0,1925.3,2.59689]
[1688221552893,18.57369602,1926.0,1925.3,11.96864]
[1688221553092,0.939,1925.9,1925.3,8.86496]
[1688221553295,5.19295,1925.7,1925.3,18.727566]
[1688221553800,5.19295,1925.7,1925.3,14.05895]
[1688221554593,14.67167184,1925.8,1925.3,17.08081433]
[1688221555005,14.67167184,1925.8,1925.3,14.05895]
[1688221555599,14.01307184,1925.8,1925.3,8.86496]
[1688221555782,15.70347184,1925.8,1925.3,14.05895]
[1688221555983,6.98143215,1925.8,1925.3,16.65594]
[1688221556296,16.42677215,1925.8,1925.3,14.05895]
[1688221556497,11.23410215,1925.8,1925.3,14.05895]
[1688221556796,0.946,1925.7,1925.3,8.86496]
[1688221556996,13.07400184,1925.6,1925.3,8.86496]
[1688221557705,13.07400184,1925.6,1925.3,14.05895]
[1688221557999,2.68752184,1925.6,1925.3,12.47795]
[1688221558212,7.88075184,1925.6,1925.3,12.47795]
[1688221558368,2.68752184,1925.6,1925.3,12.47795]
[1688221559902,7.88075184,1925.6,1925.3,12.47795]
[1688221560496,2.68752184,1925.6,1925.3,15.07494]
[1688221574215,8.54668031,1925.8,1925.3,16.842146]
[1688221574216,1.69298113,1925.8,1925.3,16.842146]
[1688221574404,2.68752184,1925.7,1925.4,0.943]
[1688221574594,2.68752184,1925.7,1925.5,12.98362]
[1688221578626,2.68752184,1925.7,1925.5,10.3869]
[1688221578821,3.47554102,1925.7,1925.5,10.3869]
[1688221580307,2.68752184,1925.7,1925.5,10.3869]
[1688221581719,2.68752184,1925.7,1925.5,5.19345]
[1688221585369,2.68752184,1925.7,1925.4,5.19354]
[1688221585552,2.68752184,1925.7,1925.5,5.1933]
[1688221589252,2.68752184,1925.7,1925.4,5.19362]
[1688221589466,2.68752184,1925.7,1925.5,5.19339]
[1688221589647,3.47554102,1925.7,1925.5,5.19339]
[1688221591268,2.68752184,1925.7,1925.5,5.19339]
[1688221592951,2.68752184,1925.7,1925.4,5.19353]
[1688221593358,2.68752184,1925.7,1925.3,2.10424581]
[1688221593560,15.66988184,1925.7,1925.2,5.19413]
[1688221593796,3.31328818,1925.6,1925.2,10.38825]
[1688221593981,2.68752184,1925.5,1925.2,10.38825]
[1688221594791,2.68752184,1925.5,1925.2,12.98538]
[1688221595760,7.88098184,1925.5,1925.2,10.38825]
[1688221596070,2.68752184,1925.5,1925.2,10.38825]
[1688221596380,0.18752184,1925.5,1925.2,10.38824]
[1688221596984,1.57627684,1925.5,1925.2,10.38824]
[1688221599489,0.18752184,1925.5,1925.2,10.38824]
[1688221601871,5.38100184,1925.5,1925.2,10.38824]
[1688221606478,5.38100184,1925.5,1925.2,5.19412]
[1688221606980,5.38100184,1925.5,1925.2,10.38838]
[1688221609943,0.18752184,1925.5,1925.2,10.38838]
[1688221610996,5.38099184,1925.5,1925.2,10.38838]
[1688221611197,6.61223602,1925.5,1925.2,10.38838]
[1688221612326,0.18752184,1925.5,1925.2,10.38838]
[1688221612528,0.18752184,1925.5,1925.2,12.98551]
[1688221613341,0.18752184,1925.5,1925.2,10.38838]
[1688221613855,5.38097184,1925.5,1925.2,10.38838]
[1688221615943,0.18752184,1925.5,1925.2,10.38838]
[1688221617573,5.38098184,1925.5,1925.2,10.38838]
[1688221617743,6.61222502,1925.5,1925.2,10.38838]
[1688221621073,1.41876502,1925.5,1925.2,12.98551]
[1688221621279,0.18752184,1925.5,1925.2,12.98551]
[1688221622230,3.12856979,1925.9,1925.2,18.17977]
[1688221622531,2.68752184,1925.8,1925.2,18.17977]
[1688221624739,2.68752184,1925.8,1925.3,0.938]
[1688221624943,0.26875218,1925.7,1925.4,5.19359]
[1688221625171,2.95627402,1925.7,1925.4,5.19359]
[1688221626010,2.95627402,1925.7,1925.4,10.38731]
[1688221634744,2.95627402,1925.7,1925.4,12.98417]
[1688221634910,2.68752184,1925.7,1925.4,12.98417]
[1688221639331,2.68752184,1925.7,1925.4,5.19359]
[1688221639517,2.68752184,1925.7,1925.4,10.38731]
[1688221640655,2.68752184,1925.7,1925.4,5.19359]
[1688221640656,2.68752184,1925.6,1925.4,5.19359]
[1688221640847,0.26875218,1925.5,1925.4,5.19359]
[1688221641026,2.68752184,1925.5,1925.4,5.19359]
[1688221641824,2.68752184,1925.5,1925.4,10.38731]
[1688221642556,2.68752184,1925.5,1925.4,5.19359]
[1688221643224,2.68752184,1925.5,1925.4,10.38731]
[1688221643925,2.68752184,1925.5,1925.4,5.19359]
[1688221645253,2.68752184,1925.5,1925.4,10.38731]
[1688221646043,2.68752184,1925.5,1925.4,5.19359]
[1688221646428,2.68752184,1925.5,1925.1,7.1862]
[1688221646429,8.66904502,1925.5,1925.1,7.1862]
[1688221646770,7.88132184,1925.4,1925.1,5.19452]
[1688221646968,13.07512184,1925.4,1925.1,5.19452]
[1688221647123,2.68752184,1925.4,1925.1,10.38905]
[1688221647324,7.88132184,1925.4,1925.1,10.38905]
[1688221647866,7.88132184,1925.4,1925.1,5.19452]
[1688221648040,7.88132184,1925.4,1925.1,10.38905]
[1688221648238,8.92117484,1925.4,1925.1,5.19452]
[1688221648429,10.50567864,1925.4,1925.1,10.38905]
[1688221649051,5.31194864,1925.4,1925.1,12.98631]